fUSD/lending_fUSD_20250107
["ID","MTS","AMOUNT","RATE_DAILY","PERIOD"]
[348063573,1736290250663,-1081.71,9.729e-05,2]
[348063574,1736290250673,-500.0,9.729e-05,2]
[348063575,1736290250683,-605.58,9.729e-05,2]
[348063576,1736290250692,-1178.59,9.729e-05,2]
[348063577,1736290250702,-500.0,9.729e-05,2]
[348063578,1736290250711,-500.0,9.729e-05,2]
[348063579,1736290250720,-500.0,9.729e-05,2]
[348063580,1736290250730,-1012.53,9.729e-05,2]
[348063581,1736290250740,-1097.58,9.729e-05,2]
[348063582,1736290250749,-1137.44,9.729e-05,2]
[348063583,1736290250759,-500.0,9.729e-05,2]
[348063584,1736290250769,-702.02,9.729e-05,2]
[348063585,1736290250780,-701.45,9.729e-05,2]
[348063586,1736290250789,-500.0,9.729e-05,2]
[348063587,1736290250799,-500.0,9.729e-05,2]
[348063588,1736290250809,-962.96,9.729e-05,2]
[348063589,1736290250819,-535.53,9.729e-05,2]
[348063590,1736290250828,-923.41,9.729e-05,2]
[348063591,1736290250838,-687.69,9.729e-05,2]
[348063592,1736290250847,-1097.97,9.729e-05,2]
[348063593,1736290250857,-981.83,9.729e-05,2]
[348063594,1736290250867,-735.48,9.729e-05,2]
[348063595,1736290250877,-1016.11,9.729e-05,2]
[348063596,1736290250887,-1247.62,9.729e-05,2]
[348063597,1736290250897,-701.64,9.729e-05,2]
[348063598,1736290250906,-1347.69,9.729e-05,2]
[348063599,1736290250915,-1306.47,9.729e-05,2]
[348063600,1736290250925,-1214.38,9.729e-05,2]
[348063601,1736290250935,-611.81,9.729e-05,2]
[348063602,1736290250944,-815.66,9.729e-05,2]
[348063603,1736290250954,-526.7,9.729e-05,2]
[348063604,1736290250964,-923.53,9.729e-05,2]
[348063605,1736290250974,-500.0,9.729e-05,2]
[348063606,1736290250984,-716.03,9.729e-05,2]
[348063607,1736290250994,-500.0,9.729e-05,2]
[348063608,1736290251004,-1976.46,9.787e-05,2]
[348063609,1736290251014,-1990.46,9.787e-05,2]
[348063610,1736290251024,-3103.77,9.787e-05,2]
[348063611,1736290251036,-1629.53,9.787e-05,2]
[348063612,1736290251046,-4968.16,9.787e-05,2]
[348063613,1736290251056,-2271.31,9.787e-05,2]
[348063614,1736290251065,-3568.89,9.787e-05,2]
[348063615,1736290251075,-2074.43,9.787e-05,2]
[348063617,1736290251085,-2137.71,9.787e-05,2]
[348063618,1736290251094,-500.0,9.787e-05,2]
[348063619,1736290251103,-844.52,9.787e-05,2]
[348063620,1736290251112,-540.19,9.787e-05,2]
[348063621,1736290251122,-500.0,9.787e-05,2]
[348063622,1736290251132,-512.87728437,9.787e-05,2]
[348063623,1736290251141,-500.0,9.787e-05,2]
[348063624,1736290251151,-1134.16,9.787e-05,2]
[348063625,1736290251160,-500.0,9.787e-05,2]
[348063626,1736290251169,-500.0,9.787e-05,2]
[348063627,1736290251179,-931.39,9.787e-05,2]
[348063628,1736290251189,-500.0,9.787e-05,2]
[348063629,1736290251199,-1148.48,9.787e-05,2]
[348063630,1736290251209,-3650.94,9.787e-05,2]
[348063631,1736290251219,-744.23,9.787e-05,2]
[348063632,1736290251227,-644.52,9.787e-05,2]
[348063633,1736290251238,-1042.38,9.787e-05,2]
[348063634,1736290251247,-685.5,9.787e-05,2]
[348063635,1736290251258,-500.0,9.787e-05,2]
[348063636,1736290251278,-702.86,9.787e-05,2]
[348063637,1736290251293,-1956.11,9.787e-05,2]
[348063638,1736290251312,-500.0,9.787e-05,2]
[348063639,1736290251331,-1214.17,9.787e-05,2]
[348063640,1736290251350,-782.25,9.787e-05,2]
[348063641,1736290251365,-1257.82,9.787e-05,2]
[348063642,1736290251383,-500.0,9.787e-05,2]
[348063643,1736290251403,-500.0,9.787e-05,2]
[348063644,1736290251421,-1450.67,9.787e-05,2]
[348063645,1736290251439,-1351.8,9.787e-05,2]
[348063646,1736290251456,-500.0,9.787e-05,2]
[348063647,1736290251472,-577.82,9.787e-05,2]
[348063648,1736290251489,-1502.49,9.787e-05,2]
[348063649,1736290251503,-500.0,9.787e-05,2]
[348063650,1736290251518,-500.0,9.787e-05,2]
[348063651,1736290251537,-940.74,9.787e-05,2]
[348063652,1736290251549,-500.0,9.787e-05,2]
[348063653,1736290251568,-678.64,9.787e-05,2]
[348063654,1736290251583,-500.0,9.787e-05,2]
[348063655,1736290251597,-500.0,9.787e-05,2]
[348063656,1736290251612,-500.0,9.787e-05,2]
[348063657,1736290251628,-1722.9,9.787e-05,2]
[348063658,1736290251642,-1017.71,9.787e-05,2]
[348063659,1736290251656,-1057.02,9.787e-05,2]
[348063660,1736290251670,-986.89,9.787e-05,2]
[348063661,1736290251688,-1492.9,9.787e-05,2]
[348063662,1736290251702,-2039.88,9.787e-05,2]
[348063663,1736290251716,-2144.34,9.787e-05,2]
[348063664,1736290251730,-3859.14,9.787e-05,2]
[348063665,1736290251745,-7732.88,9.787e-05,2]
[348063666,1736290251760,-1506.91,9.788e-05,2]
[348063667,1736290251775,-1132.07,9.788e-05,2]
[348063668,1736290251789,-1084.9,9.788e-05,2]
[348063669,1736290251804,-1201.89,9.788e-05,2]
[348063670,1736290251818,-1151.81,9.788e-05,2]
[348063671,1736290251832,-3337.89,9.788e-05,2]
[348063672,1736290251846,-534.31,9.788e-05,2]
[348063673,1736290251860,-1447.28,9.788e-05,2]
[348063674,1736290251875,-1987.67,9.788e-05,2]
[348063675,1736290251889,-1511.07,9.788e-05,2]
[348063676,1736290251904,-2484.4,9.788e-05,2]
[348063677,1736290251918,-1159.87,9.788e-05,2]
[348063678,1736290251932,-1006.39,9.788e-05,2]
[348063679,1736290251946,-3502.16,9.788e-05,2]
[348063680,1736290251958,-2868.52,9.788e-05,2]
[348063681,1736290251973,-500.0,9.789e-05,2]
[348063682,1736290251987,-500.0,9.789e-05,2]
[348063683,1736290251999,-589.05,9.789e-05,2]
[348063684,1736290252013,-500.0,9.789e-05,2]
[348063685,1736290252028,-278.76,9.789e-05,2]
[348063686,1736290252043,-500.0,9.789e-05,2]
[348063687,1736290252057,-1000.0,9.8e-05,3]
[348063688,1736290252072,-6299.49,9.824e-05,2]
[348063689,1736290252086,-3900.82,9.824e-05,2]
[348063690,1736290252099,-808.66,9.824e-05,2]
[348063691,1736290252113,-825.89,9.824e-05,2]
[348063692,1736290252127,-500.0,9.824e-05,2]
[348063693,1736290252142,-1015.49,9.824e-05,2]
[348063694,1736290252157,-167.85445265,9.824e-05,2]
[348063695,1736290252172,-1308.48,9.825e-05,2]
[348063696,1736290252186,-1076.68,9.825e-05,2]
[348063697,1736290252200,-1017.82,9.825e-05,2]
[348063698,1736290252213,-1760.53,9.825e-05,2]
[348063699,1736290252227,-1432.635477,9.825e-05,2]
[348063700,1736290252241,-1608.66159,9.825e-05,2]
[348063701,1736290252255,-1384.66,9.825e-05,2]
[348063702,1736290252269,-1064.58,9.825e-05,2]
[348063703,1736290252283,-2188.18,9.825e-05,2]
[348063704,1736290252296,-3767.12,9.825e-05,2]
[348063705,1736290252309,-2489.67,9.825e-05,2]
[348063706,1736290252323,-1533.2,9.825e-05,2]
[348063707,1736290252337,-5480.17,9.825e-05,2]
[348063708,1736290252355,-1272.31,9.825e-05,2]
[348063709,1736290252369,-954.75,9.825e-05,2]
[348063710,1736290252383,-1203.87,9.825e-05,2]
[348063711,1736290252398,-500.0,9.825e-05,2]
[348063712,1736290252413,-4080.99,9.825e-05,2]
[348063713,1736290252428,-500.0,9.825e-05,2]
[348063714,1736290252441,-1494.79,9.825e-05,2]
[348063715,1736290252455,-1690.35,9.825e-05,2]
[348063716,1736290252469,-1663.51,9.825e-05,2]
[348063717,1736290252484,-2008.34,9.825e-05,2]
[348063718,1736290252500,-1523.36,9.825e-05,2]
[348063719,1736290252515,-1398.98,9.825e-05,2]
[348063720,1736290252526,-609.94,9.825e-05,2]
[348063721,1736290252536,-3256.31,9.825e-05,2]
[348063722,1736290252545,-500.0,9.826e-05,2]
[348063723,1736290252555,-403.25967856,9.826e-05,2]
[348063724,1736290252565,-500.0,9.826e-05,2]
[348063725,1736290252576,-500.0,9.826e-05,2]
[348063726,1736290252585,-569.03,9.826e-05,2]
[348063727,1736290252595,-500.0,9.826e-05,2]
[348063728,1736290252604,-619.27,9.826e-05,2]
[348063729,1736290252614,-309.88,9.826e-05,2]
[348063730,1736290252626,-500.0,9.826e-05,2]
[348063731,1736290252636,-500.0,9.826e-05,2]
[348063732,1736290252645,-500.0,9.826e-05,2]
[348063733,1736290252655,-534.48,9.826e-05,2]
[348063734,1736290252665,-500.0,9.826e-05,2]
[348063735,1736290252674,-551.42,9.826e-05,2]
[348063736,1736290252684,-500.0,9.826e-05,2]
[348063737,1736290252992,-500.0,9.826e-05,2]
[348063738,1736290253014,-500.0,9.826e-05,2]
[348063739,1736290253037,-500.0,9.826e-05,2]
[348063740,1736290253048,-500.0,9.826e-05,2]
[348063741,1736290253057,-673.43,9.826e-05,2]
[348063742,1736290253067,-500.0,9.826e-05,2]
[348063743,1736290253076,-500.0,9.826e-05,2]
[348063744,1736290253085,-500.0,9.826e-05,2]
[348063745,1736290253094,-958.43,9.826e-05,2]
[348063746,1736290253104,-500.0,9.826e-05,2]
[348063747,1736290253113,-543.11,9.826e-05,2]
[348063748,1736290253122,-500.0,9.826e-05,2]
[348063749,1736290253131,-689.56,9.826e-05,2]
[348063750,1736290253140,-500.0,9.826e-05,2]
[348063751,1736290253150,-774.32,9.826e-05,2]
[348063752,1736290253158,-500.0,9.826e-05,2]
[348063753,1736290253167,-500.0,9.826e-05,2]
[348063754,1736290253176,-691.31,9.826e-05,2]
[348063755,1736290253185,-500.0,9.826e-05,2]
[348063756,1736290253194,-500.0,9.826e-05,2]
[348063757,1736290253204,-500.0,9.826e-05,2]
[348063758,1736290253213,-500.0,9.826e-05,2]
[348063759,1736290253222,-500.0,9.826e-05,2]
[348063760,1736290253232,-772.19,9.826e-05,2]
[348063761,1736290253241,-500.0,9.826e-05,2]
[348063762,1736290253250,-500.0,9.826e-05,2]
[348063763,1736290253260,-500.0,9.826e-05,2]
[348063764,1736290253268,-500.0,9.826e-05,2]
[348063765,1736290253278,-500.0,9.826e-05,2]
[348063766,1736290253287,-500.0,9.826e-05,2]
[348063767,1736290253296,-621.31,9.826e-05,2]
[348063768,1736290253305,-528.04,9.826e-05,2]
[348063769,1736290253315,-500.0,9.826e-05,2]
[348063770,1736290253325,-737.57,9.826e-05,2]
[348063771,1736290253334,-184.53,9.826e-05,2]
[348063772,1736290253347,-950.49,9.826e-05,2]
[348063773,1736290253356,-500.0,9.826e-05,2]
[348063774,1736290253366,-500.0,9.826e-05,2]
[348063775,1736290253375,-500.0,9.826e-05,2]
[348063776,1736290253385,-500.0,9.826e-05,2]
[348063777,1736290253395,-599.43,9.826e-05,2]
[348063778,1736290253404,-549.76,9.826e-05,2]
[348063779,1736290253414,-500.0,9.826e-05,2]
[348063780,1736290253426,-919.61,9.826e-05,2]
[348063781,1736290253438,-500.0,9.826e-05,2]
[348063782,1736290253447,-500.0,9.826e-05,2]
[348063783,1736290253457,-500.0,9.826e-05,2]
[348063784,1736290253466,-500.0,9.826e-05,2]
[348063785,1736290253475,-555.85944571,9.826e-05,2]
[348063786,1736290253484,-225.99,9.826e-05,2]
[348063787,1736290253494,-621.11,9.826e-05,2]
[348063788,1736290253503,-1305.48,9.826e-05,2]
[348063789,1736290253514,-500.0,9.826e-05,2]
[348063790,1736290253523,-554.96,9.826e-05,2]
[348063791,1736290253533,-548.01,9.826e-05,2]
[348063792,1736290253542,-614.86,9.826e-05,2]
[348063793,1736290253552,-734.14,9.826e-05,2]
[348063794,1736290253561,-500.0,9.826e-05,2]
[348063795,1736290253571,-763.53,9.826e-05,2]
[348063796,1736290253580,-500.0,9.826e-05,2]
[348063797,1736290253590,-564.05,9.826e-05,2]
[348063798,1736290253599,-738.71,9.826e-05,2]
[348063799,1736290253608,-500.0,9.826e-05,2]
[348063800,1736290253619,-500.0,9.826e-05,2]
[348063801,1736290253629,-500.0,9.826e-05,2]
[348063802,1736290253640,-698.98,9.826e-05,2]
[348063803,1736290253650,-500.0,9.826e-05,2]
[348063804,1736290253660,-592.18,9.826e-05,2]
[348063805,1736290253669,-500.0,9.826e-05,2]
[348063806,1736290253680,-654.74,9.826e-05,2]
[348063807,1736290253692,-500.0,9.826e-05,2]
[348063808,1736290253703,-547.02,9.826e-05,2]
[348063809,1736290253712,-500.0,9.826e-05,2]
[348063810,1736290253722,-500.0,9.826e-05,2]
[348063811,1736290253731,-500.0,9.826e-05,2]
[348063812,1736290253742,-500.0,9.826e-05,2]
[348063813,1736290253752,-500.0,9.826e-05,2]
[348063814,1736290253761,-500.0,9.826e-05,2]
[348063815,1736290253770,-500.0,9.826e-05,2]
[348063816,1736290253779,-500.0,9.826e-05,2]
[348063817,1736290253788,-671.03,9.826e-05,2]
[348063818,1736290253798,-500.0,9.826e-05,2]
[348063819,1736290253807,-500.0,9.826e-05,2]
[348063820,1736290253817,-500.0,9.826e-05,2]
[348063821,1736290253826,-500.0,9.826e-05,2]
[348063822,1736290253835,-500.0,9.826e-05,2]
[348063823,1736290253844,-500.0,9.826e-05,2]
[348063824,1736290253853,-663.29,9.826e-05,2]
[348063825,1736290253862,-895.43,9.826e-05,2]
[348063826,1736290253871,-500.0,9.826e-05,2]
[348063827,1736290253881,-500.0,9.826e-05,2]
[348063828,1736290253890,-500.0,9.826e-05,2]
[348063829,1736290253899,-500.0,9.826e-05,2]
[348063830,1736290253909,-161.74122768,9.826e-05,2]
[348063831,1736290253918,-508.79,9.826e-05,2]
[348063832,1736290253927,-653.72,9.826e-05,2]
[348063833,1736290253936,-500.0,9.826e-05,2]
[348063834,1736290253945,-593.7,9.826e-05,2]
[348063835,1736290253955,-500.0,9.826e-05,2]
[348063836,1736290253964,-500.0,9.826e-05,2]
[348063837,1736290253974,-623.39,9.826e-05,2]
[348063838,1736290253983,-1369.89,9.826e-05,2]
[348063839,1736290253992,-500.0,9.826e-05,2]
[348063840,1736290254001,-971.26,9.826e-05,2]
[348063841,1736290254010,-500.0,9.826e-05,2]
[348063842,1736290254019,-500.0,9.826e-05,2]
[348063843,1736290254028,-500.0,9.826e-05,2]
[348063844,1736290254038,-500.0,9.826e-05,2]
[348063845,1736290254049,-1522.1,9.826e-05,2]
[348063846,1736290254061,-1006.5,9.826e-05,2]
[348063847,1736290254070,-500.0,9.826e-05,2]
[348063848,1736290254079,-500.0,9.826e-05,2]
[348063849,1736290254088,-4588.54,9.826e-05,2]
[348063850,1736290254097,-552.23,9.826e-05,2]
[348063851,1736290254106,-500.0,9.826e-05,2]
[348063852,1736290254115,-500.0,9.826e-05,2]
[348063853,1736290254125,-627.12,9.826e-05,2]
[348063854,1736290254134,-3709.51,9.826e-05,2]
[348063855,1736290254144,-500.0,9.826e-05,2]
[348063856,1736290254153,-500.0,9.826e-05,2]
[348063857,1736290254163,-551.69,9.826e-05,2]
[348063858,1736290254172,-564.59,9.826e-05,2]
[348063859,1736290254181,-500.0,9.826e-05,2]
[348063860,1736290254190,-500.0,9.826e-05,2]
[348063861,1736290254199,-500.0,9.826e-05,2]
[348063862,1736290254209,-500.0,9.826e-05,2]
[348063863,1736290254218,-500.0,9.826e-05,2]
[348063864,1736290254227,-768.22,9.826e-05,2]
[348063865,1736290254236,-1607.22,9.826e-05,2]
[348063866,1736290254246,-500.0,9.826e-05,2]
[348063867,1736290254255,-520.1,9.826e-05,2]
[348063868,1736290254264,-1834.97,9.826e-05,2]
[348063869,1736290254274,-500.0,9.826e-05,2]
[348063870,1736290254283,-500.0,9.826e-05,2]
[348063871,1736290254291,-1189.26,9.826e-05,2]
[348063872,1736290254301,-578.09,9.826e-05,2]
[348063873,1736290254310,-537.41,9.826e-05,2]
[348063874,1736290254319,-2000.0,9.9e-05,3]
[348063875,1736290254327,-255.0,9.903e-05,2]
[348063876,1736290254336,-797.72,9.959e-05,2]
[348063877,1736290254349,-3528.04,9.959e-05,2]
[348063878,1736290254358,-1276.55,9.959e-05,2]
[348063879,1736290254367,-3057.55,9.959e-05,2]
[348063880,1736290254377,-7935.21,9.959e-05,2]
[348063881,1736290254387,-920.79,9.959e-05,2]
[348063882,1736290254396,-1588.01,9.959e-05,2]
[348063883,1736290254406,-2769.15,9.959e-05,2]
[348063884,1736290254415,-500.0,9.959e-05,2]
[348063885,1736290254425,-5146.02,9.959e-05,2]
[348063886,1736290254434,-1860.59,9.959e-05,2]
[348063887,1736290254443,-500.0,9.959e-05,2]
[348063888,1736290254452,-2177.16,9.959e-05,2]
[348063889,1736290254461,-1293.55,9.959e-05,2]
[348063890,1736290254470,-4623.61,9.959e-05,2]
[348063891,1736290254479,-2142.04,9.959e-05,2]
[348063892,1736290254488,-1965.94,9.959e-05,2]
[348063893,1736290254497,-2185.97,9.959e-05,2]
[348063894,1736290254506,-946.04,9.959e-05,2]
[348063895,1736290254517,-3004.29,9.959e-05,2]
[348063896,1736290254526,-500.0,9.959e-05,2]
[348063897,1736290254535,-500.0,9.959e-05,2]
[348063898,1736290254544,-1147.28,9.959e-05,2]
[348063899,1736290254554,-1015.36,9.959e-05,2]
[348063900,1736290254563,-500.0,9.959e-05,2]
[348063901,1736290254572,-1034.35,9.959e-05,2]
[348063902,1736290254581,-564.54,9.959e-05,2]
[348063903,1736290254590,-2088.64,9.959e-05,2]
[348063904,1736290254599,-500.0,9.998e-05,2]
[348063905,1736290254609,-1746.62,9.998e-05,2]
[348063906,1736290254620,-4683.38,9.998e-05,2]
[348063907,1736290254629,-1526.5849228,0.0001,2]
[348063908,1736290254638,-185631.89844433,0.0001,2]
[348063909,1736290254658,-48825.73506189,0.0001,2]
[348063910,1736290254667,-12640.48250673,0.0001,4]
[348063911,1736290254677,-660.39,0.0001,2]
[348063912,1736290254686,-3000.0,0.0001,3]
[348063913,1736290254695,-180.0,0.0001,2]
[348063914,1736290254704,-1266.21074919,0.0001,2]
[348063915,1736290254713,-500.0,0.00010002,2]
[348063916,1736290254723,-500.0,0.00010002,2]
[348063917,1736290254732,-500.0,0.00010002,2]
[348063918,1736290254741,-505.84,0.00010002,2]
[348063919,1736290254750,-500.0,0.00010002,2]
[348063920,1736290254760,-500.0,0.00010002,2]
[348063921,1736290254769,-542.87,0.00010002,2]
[348063922,1736290254778,-500.0,0.00010002,2]
[348063923,1736290254787,-500.0,0.00010002,2]
[348063924,1736290254797,-500.0,0.00010002,2]
[348063925,1736290254806,-500.0,0.00010002,2]
[348063926,1736290254816,-500.0,0.00010002,2]
[348063927,1736290254825,-538.95,0.00010002,2]
[348063928,1736290254835,-364.89,0.00010002,2]
[348063929,1736290254844,-500.0,0.00010002,2]
[348063930,1736290254853,-636.37018187,0.00010002,2]
[348063931,1736290254863,-500.0,0.00010002,2]
[348063932,1736290254872,-632.09,0.00010002,2]
[348063933,1736290254882,-500.0,0.00010002,2]
[348063934,1736290254893,-636.56,0.00010002,2]
[348063935,1736290254903,-500.0,0.00010002,2]
[348063936,1736290254913,-627.49,0.00010002,2]
[348063937,1736290254922,-717.74,0.00010002,2]
[348063938,1736290254931,-500.0,0.00010002,2]
[348063939,1736290254941,-500.0,0.00010002,2]
[348063940,1736290254951,-500.0,0.00010002,2]
[348063941,1736290254961,-500.0,0.00010002,2]
[348063942,1736290254970,-137.11595108,0.00010002,2]
[348063943,1736290254995,-362.88404892,0.00010002,2]
[348063944,1736290255005,-500.0,0.00010003,2]
[348063945,1736290255014,-918.23,0.00010003,2]
[348063946,1736290255024,-730.29,0.00010003,2]
[348063947,1736290255034,-500.0,0.00010003,2]
[348063948,1736290255045,-500.0,0.00010003,2]
[348063949,1736290255056,-500.0,0.00010003,2]
[348063950,1736290255066,-1236.68,0.00010003,2]
[348063951,1736290255075,-889.86,0.00010003,2]
[348063952,1736290255087,-1169.42,0.00010003,2]
[348063953,1736290255096,-638.18,0.00010003,2]
[348063954,1736290255106,-526.57,0.00010003,2]
[348063955,1736290255116,-621.31,0.00010003,2]
[348063956,1736290255125,-500.0,0.00010003,2]
[348063957,1736290255134,-527.28,0.00010003,2]
[348063958,1736290255144,-953.02,0.00010003,2]
[348063959,1736290255153,-500.0,0.00010003,2]
[348063960,1736290255162,-500.44,0.00010003,2]
[348063961,1736290255171,-880.01,0.00010003,2]
[348063962,1736290255181,-500.0,0.00010003,2]
[348063963,1736290255190,-500.0,0.00010003,2]
[348063964,1736290255199,-500.0,0.00010003,2]
[348063965,1736290255208,-989.14,0.00010003,2]
[348063966,1736290255217,-619.42,0.00010003,2]
[348063967,1736290255227,-1041.11,0.00010003,2]
[348063968,1736290255236,-500.0,0.00010003,2]
[348063969,1736290255246,-500.0,0.00010003,2]
[348063970,1736290255255,-1191.41,0.00010003,2]
[348063971,1736290255265,-162.12571387,0.00010003,2]
[348063972,1736290255302,-424.62428613,0.00010003,2]
[348063973,1736290255311,-1060.23,0.00010003,2]
[348063974,1736290255321,-500.0,0.00010003,2]
[348063975,1736290255330,-500.0,0.00010003,2]
[348063976,1736290255339,-660.8,0.00010003,2]
[348063977,1736290255352,-502.09,0.00010003,2]
[348063978,1736290255361,-954.95,0.00010003,2]
[348063979,1736290255370,-500.0,0.00010003,2]
[348063980,1736290255379,-512.5,0.00010003,2]
[348063981,1736290255389,-1110.2,0.00010003,2]
[348063982,1736290255398,-556.46,0.00010003,2]
[348063983,1736290255407,-689.24,0.00010003,2]
[348063984,1736290255416,-508.82,0.00010003,2]
[348063985,1736290255427,-762.82,0.00010003,2]
[348063986,1736290255437,-15.24549887,0.00010003,2]
[348063987,1736290255972,-284.74638608,0.00010003,2]
[348063988,1736290255984,-200.00811505,0.00010003,2]
[348063989,1736290255994,-500.0,0.00010003,2]
[348063990,1736290256003,-440.79188435,0.00010003,2]
[348063991,1736290256022,-589.55811565,0.00010003,2]
[348063992,1736290256033,-1081.71,0.00010003,2]
[348063993,1736290256043,-500.0,0.00010003,2]
[348063994,1736290256054,-605.58,0.00010003,2]
[348063995,1736290256064,-846.72229567,0.00010003,2]
[348063996,1736290256076,-331.86770433,0.00010003,2]
[348063997,1736290256086,-500.0,0.00010003,2]
[348063998,1736290256095,-500.0,0.00010003,2]
[348063999,1736290256104,-500.0,0.00010003,2]
[348064000,1736290256114,-166.16136932,0.00010003,2]
[348064001,1736290256623,-846.36863068,0.00010003,2]
[348064002,1736290256633,-1016.20411407,0.00010003,2]
[348064003,1736290256645,-81.37588593,0.00010003,2]
[348064004,1736290256655,-1137.44,0.00010003,2]
[348064005,1736290256665,-500.0,0.00010003,2]
[348064006,1736290256676,-298.5496141,0.00010003,2]
[348064007,1736290256688,-403.4703859,0.00010003,2]
[348064008,1736290256698,-701.45,0.00010003,2]
[348064009,1736290256708,-500.0,0.00010003,2]
[348064010,1736290256718,-588.83257426,0.00010003,2]
[348064011,1736290256728,-962.96,0.00010003,2]
[348064012,1736290256739,-535.53,0.00010003,2]
[348064013,1736290256749,-923.41,0.00010003,2]
[348064014,1736290256759,-687.69,0.00010003,2]
[348064015,1736290256770,-1097.97,0.00010003,2]
[348064016,1736290256780,-981.83,0.00010003,2]
[348064017,1736290256789,-735.48,0.00010003,2]
[348064018,1736290256799,-1016.11,0.00010003,2]
[348064019,1736290256808,-584.66703984,0.00010003,2]
[348064020,1736290256820,-662.95296016,0.00010003,2]
[348064021,1736290256829,-701.64,0.00010003,2]
[348064022,1736290256839,-1347.69,0.00010003,2]
[348064023,1736290256849,-1306.47,0.00010003,2]
[348064024,1736290256858,-1214.38,0.00010003,2]
[348064025,1736290256868,-611.81,0.00010003,2]
[348064026,1736290256877,-815.66,0.00010003,2]
[348064027,1736290256887,-526.7,0.00010003,2]
[348064028,1736290256896,-923.53,0.00010003,2]
[348064029,1736290256905,-500.0,0.00010003,2]
[348064030,1736290256914,-716.03,0.00010003,2]
[348064031,1736290256923,-500.0,0.00010003,2]
[348064032,1736290256934,-1976.46,0.00010061,2]
[348064033,1736290256943,-1990.46,0.00010061,2]
[348064034,1736290256953,-3103.77,0.00010061,2]
[348064035,1736290256964,-1629.53,0.00010061,2]
[348064036,1736290256975,-4968.16,0.00010061,2]
[348064037,1736290256985,-2271.31,0.00010061,2]
[348064038,1736290256995,-3568.89,0.00010061,2]
[348064039,1736290257005,-2074.43,0.00010061,2]
[348064040,1736290257015,-2137.71,0.00010061,2]
[348064041,1736290257025,-500.0,0.00010061,2]
[348064042,1736290257036,-844.52,0.00010061,2]
[348064043,1736290257047,-540.19,0.00010061,2]
[348064044,1736290257058,-500.0,0.00010061,2]
[348064045,1736290257068,-500.0,0.00010061,2]
[348064046,1736290257078,-1134.16,0.00010061,2]
[348064047,1736290257087,-500.0,0.00010061,2]
[348064048,1736290257097,-931.39,0.00010061,2]
[348064049,1736290257106,-500.0,0.00010061,2]
[348064050,1736290257115,-1148.48,0.00010061,2]
[348064051,1736290257125,-3650.94,0.00010061,2]
[348064052,1736290257135,-744.23,0.00010061,2]
[348064053,1736290257145,-644.52,0.00010061,2]
[348064054,1736290257155,-1042.38,0.00010061,2]
[348064055,1736290257165,-685.5,0.00010061,2]
[348064056,1736290257174,-500.0,0.00010061,2]
[348064057,1736290257184,-702.86,0.00010061,2]
[348064058,1736290257193,-1956.11,0.00010061,2]
[348064059,1736290257203,-500.0,0.00010061,2]
[348064060,1736290257212,-1214.17,0.00010061,2]
[348064061,1736290257221,-782.25,0.00010061,2]
[348064062,1736290257231,-1257.82,0.00010061,2]
[348064063,1736290257241,-500.0,0.00010061,2]
[348064064,1736290257250,-1351.8,0.00010061,2]
[348064065,1736290257260,-1450.67,0.00010061,2]
[348064066,1736290257270,-500.0,0.00010061,2]
[348064067,1736290257279,-577.82,0.00010061,2]
[348064068,1736290257288,-1502.49,0.00010061,2]
[348064069,1736290257298,-500.0,0.00010061,2]
[348064070,1736290257307,-940.74,0.00010061,2]
[348064071,1736290257316,-678.64,0.00010061,2]
[348064072,1736290257326,-500.0,0.00010061,2]
[348064073,1736290257335,-500.0,0.00010061,2]